[Event "*** MasterClass Titled Tuesday Blitz"]
[Site "Chess.com"]
[Date "2017.11.07"]
[Round "5"]
[White "tigra"]
[Black "popov_m"]
[Result "1-0"]
[WhiteElo "2644"]
[BlackElo "2482"]
[TimeControl "180+2"]
[EndTime "15:12:30 PST"]
[Termination "tigra won by resignation"]

1. e4 {[%clk 0:03:01.9]} 1... g6 {[%clk 0:02:58.5]} 2. d4 {[%clk 0:03:02.1]}
2... Bg7 {[%clk 0:03:00.1]} 3. Be3 {[%clk 0:03:03.5]} 3... d6 {[%clk 0:03:00.9]}
4. Qd2 {[%clk 0:03:04.1]} 4... a6 {[%clk 0:03:01.3]} 5. c4 {[%clk 0:03:03.2]}
5... Nc6 {[%clk 0:02:58.3]} 6. Ne2 {[%clk 0:03:01.4]} 6... Nf6 {[%clk
0:02:57.9]} 7. f3 {[%clk 0:03:02]} 7... O-O {[%clk 0:02:59.1]} 8. Nbc3 {[%clk
0:03:02.3]} 8... Na5 {[%clk 0:03:00]} 9. b3 {[%clk 0:02:52.8]} 9... b5 {[%clk
0:03:00.2]} 10. c5 {[%clk 0:02:51]} 10... dxc5 {[%clk 0:02:35.4]} 11. e5 {[%clk
0:02:46.6]} 11... Nd7 {[%clk 0:02:14.8]} 12. e6 {[%clk 0:02:36.9]} 12... fxe6
{[%clk 0:02:14.5]} 13. Ne4 {[%clk 0:02:37.5]} 13... Nc6 {[%clk 0:02:04.8]} 14.
Rd1 {[%clk 0:02:37.1]} 14... cxd4 {[%clk 0:01:50.1]} 15. Nxd4 {[%clk 0:02:39]}
15... Nxd4 {[%clk 0:01:50.9]} 16. Bxd4 {[%clk 0:02:40.7]} 16... Ne5 {[%clk
0:01:40.1]} 17. Qc3 {[%clk 0:02:39.5]} 17... Qd5 {[%clk 0:00:56]} 18. Be2 {[%clk
0:01:46.2]} 18... Bb7 {[%clk 0:00:18.2]} 19. Qxc7 {[%clk 0:01:43.6]} 19... Rac8
{[%clk 0:00:10.8]} 20. Qxe7 {[%clk 0:01:44.2]} 20... Rc2 {[%clk 0:00:08.7]} 21.
Bc5 {[%clk 0:01:06.4]} 21... Qc6 {[%clk 0:00:08.8]} 22. Rd8 {[%clk 0:01:04.1]}
22... Rxc5 {[%clk 0:00:04.7]} 23. Nf6+ {[%clk 0:01:04]} 1-0

[Event "*** MasterClass Titled Tuesday Blitz"]
[Site "Chess.com"]
[Date "2017.11.07"]
[Round "5"]
[White "pedromartinez91"]
[Black "kikydu96"]
[Result "0-1"]
[WhiteElo "2317"]
[BlackElo "2401"]
[TimeControl "180+2"]
[EndTime "15:12:49 PST"]
[Termination "kikydu96 won on time"]

1. e4 {[%clk 0:02:58.5]} 1... e5 {[%clk 0:01:30.3]} 2. Nf3 {[%clk 0:02:47.5]}
2... Nc6 {[%clk 0:01:30.8]} 3. Bb5 {[%clk 0:02:47.7]} 3... Nf6 {[%clk
0:01:31.8]} 4. d4 {[%clk 0:02:44.3]} 4... exd4 {[%clk 0:01:27.6]} 5. e5 {[%clk
0:02:42.6]} 5... Ne4 {[%clk 0:01:27.9]} 6. O-O {[%clk 0:02:43.6]} 6... Be7
{[%clk 0:01:26.2]} 7. Nxd4 {[%clk 0:02:44.3]} 7... Nxd4 {[%clk 0:01:09.7]} 8.
Qxd4 {[%clk 0:02:38.8]} 8... Nc5 {[%clk 0:01:11.1]} 9. Nc3 {[%clk 0:02:32.5]}
9... O-O {[%clk 0:01:09.8]} 10. Qe3 {[%clk 0:02:27.8]} 10... c6 {[%clk
0:01:07.9]} 11. Be2 {[%clk 0:02:23.3]} 11... d5 {[%clk 0:01:09]} 12. exd6 {[%clk
0:02:22.1]} 12... Bxd6 {[%clk 0:01:10.2]} 13. Qg5 {[%clk 0:01:53.1]} 13... Qxg5
{[%clk 0:01:07.5]} 14. Bxg5 {[%clk 0:01:52.2]} 14... Bf5 {[%clk 0:01:09.4]} 15.
Rac1 {[%clk 0:01:51.2]} 15... Rfe8 {[%clk 0:01:04.2]} 16. Bf3 {[%clk 0:01:51.7]}
16... Be5 {[%clk 0:00:56.7]} 17. Bd2 {[%clk 0:01:44.2]} 17... Rad8 {[%clk
0:00:54.2]} 18. Rfd1 {[%clk 0:01:44.8]} 18... h6 {[%clk 0:00:48.7]} 19. g4
{[%clk 0:01:32.2]} 19... Bg6 {[%clk 0:00:49.2]} 20. b4 {[%clk 0:01:24.3]} 20...
Ne6 {[%clk 0:00:49]} 21. Ne4 {[%clk 0:01:20.3]} 21... Nd4 {[%clk 0:00:46.5]} 22.
Bg2 {[%clk 0:01:18.9]} 22... Ne2+ {[%clk 0:00:46.9]} 23. Kf1 {[%clk 0:01:19.6]}
23... Nxc1 {[%clk 0:00:48.8]} 0-1

[Event "*** MasterClass Titled Tuesday Blitz"]
[Site "Chess.com"]
[Date "2017.11.07"]
[Round "5"]
[White "bugsbunny444"]
[Black "Maitreia"]
[Result "1-0"]
[WhiteElo "2424"]
[BlackElo "2467"]
[TimeControl "180+2"]
[EndTime "15:13:02 PST"]
[Termination "bugsbunny444 won by resignation"]

1. Nf3 {[%clk 0:03:01.9]} 1... Nf6 {[%clk 0:03:00.6]} 2. c4 {[%clk 0:03:03]}
2... g6 {[%clk 0:03:02.5]} 3. b4 {[%clk 0:03:04.4]} 3... Bg7 {[%clk 0:03:04.4]}
4. Bb2 {[%clk 0:03:05.9]} 4... O-O {[%clk 0:03:06]} 5. g3 {[%clk 0:03:07.4]}
5... b6 {[%clk 0:03:05.2]} 6. Bg2 {[%clk 0:03:08.7]} 6... Bb7 {[%clk 0:03:06.3]}
7. O-O {[%clk 0:03:10.4]} 7... c5 {[%clk 0:03:06.7]} 8. bxc5 {[%clk 0:03:10.9]}
8... bxc5 {[%clk 0:03:08.6]} 9. Nc3 {[%clk 0:03:07.9]} 9... Nc6 {[%clk
0:03:09.1]} 10. Rb1 {[%clk 0:03:09.1]} 10... Nd4 {[%clk 0:02:57.7]} 11. Nxd4
{[%clk 0:02:52.5]} 11... Bxg2 {[%clk 0:02:59.6]} 12. Kxg2 {[%clk 0:02:54.4]}
12... cxd4 {[%clk 0:03:00.4]} 13. Nb5 {[%clk 0:02:56]} 13... d5 {[%clk
0:02:39.1]} 14. c5 {[%clk 0:02:45.2]} 14... e5 {[%clk 0:02:33.9]} 15. Qa4 {[%clk
0:02:29.7]} 15... a6 {[%clk 0:02:11.9]} 16. Nd6 {[%clk 0:02:30.3]} 16... h5
{[%clk 0:02:01]} 17. Ba3 {[%clk 0:02:26]} 17... h4 {[%clk 0:02:00.5]} 18. Rb7
{[%clk 0:02:21.9]} 18... Rb8 {[%clk 0:01:45.3]} 19. c6 {[%clk 0:02:14.7]} 19...
Rxb7 {[%clk 0:01:28.6]} 20. Nxb7 {[%clk 0:02:15.1]} 20... h3+ {[%clk 0:01:22.7]}
21. Kxh3 {[%clk 0:02:11.8]} 21... Qc8+ {[%clk 0:01:20.1]} 22. Kg2 {[%clk
0:02:13.1]} 22... Nh5 {[%clk 0:01:06.2]} 23. Qxa6 {[%clk 0:01:37.6]} 23... Nf4+
{[%clk 0:00:31.5]} 24. gxf4 {[%clk 0:01:32.9]} 24... Qg4+ {[%clk 0:00:31.4]} 25.
Kh1 {[%clk 0:01:34.3]} 25... Qxf4 {[%clk 0:00:21.4]} 26. Bxf8 {[%clk 0:01:24.3]}
26... Bxf8 {[%clk 0:00:22.4]} 27. c7 {[%clk 0:01:17.3]} 27... e4 {[%clk
0:00:11.4]} 28. c8=Q {[%clk 0:01:15.4]} 28... d3 {[%clk 0:00:12.4]} 29. Qd6
{[%clk 0:00:59.1]} 1-0

[Event "*** MasterClass Titled Tuesday Blitz"]
[Site "Chess.com"]
[Date "2017.11.07"]
[Round "5"]
[White "ChainsOfFantasia"]
[Black "Taron_Shagbazyan"]
[Result "0-1"]
[WhiteElo "2489"]
[BlackElo "2565"]
[TimeControl "180+2"]
[EndTime "15:13:20 PST"]
[Termination "Taron_Shagbazyan won by resignation"]

1. d4 {[%clk 0:03:01.9]} 1... Nf6 {[%clk 0:03:00]} 2. c4 {[%clk 0:03:02.1]} 2...
e6 {[%clk 0:03:01.1]} 3. Nf3 {[%clk 0:03:03.3]} 3... Bb4+ {[%clk 0:03:01.4]} 4.
Nbd2 {[%clk 0:03:03.4]} 4... O-O {[%clk 0:02:58.5]} 5. g3 {[%clk 0:03:04.2]}
5... d6 {[%clk 0:02:50.5]} 6. Bg2 {[%clk 0:03:05.1]} 6... c5 {[%clk 0:02:50.1]}
7. O-O {[%clk 0:03:05.7]} 7... Nc6 {[%clk 0:02:45.9]} 8. Nb3 {[%clk 0:03:04.1]}
8... cxd4 {[%clk 0:02:40.6]} 9. Nfxd4 {[%clk 0:02:49]} 9... Nxd4 {[%clk
0:02:34.7]} 10. Qxd4 {[%clk 0:02:46.4]} 10... e5 {[%clk 0:02:33.9]} 11. Qd3
{[%clk 0:02:46.2]} 11... Qc7 {[%clk 0:02:28.6]} 12. a3 {[%clk 0:02:45.7]} 12...
Bc5 {[%clk 0:02:29.7]} 13. Nxc5 {[%clk 0:02:45.7]} 13... dxc5 {[%clk 0:02:30.4]}
14. Bg5 {[%clk 0:02:43.2]} 14... Rd8 {[%clk 0:02:18]} 15. Qc2 {[%clk 0:02:23.1]}
15... Be6 {[%clk 0:02:13.2]} 16. Rfd1 {[%clk 0:02:16.6]} 16... Rd4 {[%clk
0:02:05.9]} 17. Bxf6 {[%clk 0:02:04.9]} 17... Rxc4 {[%clk 0:01:46.9]} 18. Qd2
{[%clk 0:01:58.5]} 18... gxf6 {[%clk 0:01:44.6]} 19. b3 {[%clk 0:01:58.4]} 19...
Rd4 {[%clk 0:01:44.4]} 20. Qh6 {[%clk 0:01:58]} 20... Qe7 {[%clk 0:01:39.3]} 21.
b4 {[%clk 0:01:49.5]} 21... Rad8 {[%clk 0:01:26.8]} 22. Rxd4 {[%clk 0:01:32.9]}
22... cxd4 {[%clk 0:01:27.6]} 23. Rc1 {[%clk 0:01:26.9]} 23... Rc8 {[%clk
0:01:25.9]} 24. Rxc8+ {[%clk 0:01:06.1]} 24... Bxc8 {[%clk 0:01:26.4]} 25. Be4
{[%clk 0:01:06.9]} 25... f5 {[%clk 0:01:26.5]} 26. Qc1 {[%clk 0:01:05.1]} 26...
Be6 {[%clk 0:01:21.9]} 27. Bg2 {[%clk 0:01:03.8]} 27... Kg7 {[%clk 0:01:21]} 28.
h4 {[%clk 0:01:01.5]} 28... h6 {[%clk 0:01:21.8]} 29. Kh2 {[%clk 0:00:54]} 29...
b6 {[%clk 0:01:13.1]} 30. Qc6 {[%clk 0:00:52.8]} 30... e4 {[%clk 0:01:09.6]} 31.
Qc2 {[%clk 0:00:43.5]} 31... Qd6 {[%clk 0:01:09.2]} 32. Qd2 {[%clk 0:00:44.2]}
32... Qe5 {[%clk 0:01:02.8]} 33. f3 {[%clk 0:00:44.1]} 33... e3 {[%clk
0:01:01.7]} 34. Qc1 {[%clk 0:00:43.6]} 34... f4 {[%clk 0:01:02.5]} 35. g4 {[%clk
0:00:43.6]} 35... Bxg4 {[%clk 0:00:59.3]} 36. fxg4 {[%clk 0:00:42.2]} 36... f3+
{[%clk 0:01:00.4]} 37. Kg1 {[%clk 0:00:43.2]} 37... Qg3 {[%clk 0:00:55.1]} 38.
exf3 {[%clk 0:00:41.1]} 38... e2 {[%clk 0:00:52.9]} 0-1

[Event "*** MasterClass Titled Tuesday Blitz"]
[Site "Chess.com"]
[Date "2017.11.07"]
[Round "5"]
[White "jncool68"]
[Black "GM_dmitrij"]
[Result "1/2-1/2"]
[WhiteElo "2472"]
[BlackElo "2608"]
[TimeControl "180+2"]
[EndTime "15:13:25 PST"]
[Termination "Game drawn by repetition"]

1. e4 {[%clk 0:03:01.9]} 1... e5 {[%clk 0:02:52.9]} 2. Nf3 {[%clk 0:03:02.4]}
2... Nc6 {[%clk 0:02:50.9]} 3. Bb5 {[%clk 0:03:02.6]} 3... a6 {[%clk 0:02:51.6]}
4. Ba4 {[%clk 0:03:03.4]} 4... Nf6 {[%clk 0:02:52.3]} 5. O-O {[%clk 0:03:04]}
5... Be7 {[%clk 0:02:53.9]} 6. Re1 {[%clk 0:03:04.2]} 6... b5 {[%clk 0:02:54.8]}
7. Bb3 {[%clk 0:03:05.1]} 7... d6 {[%clk 0:02:56.7]} 8. c3 {[%clk 0:03:05.6]}
8... O-O {[%clk 0:02:57.9]} 9. h3 {[%clk 0:03:06.5]} 9... Na5 {[%clk 0:02:59.3]}
10. Bc2 {[%clk 0:03:06.8]} 10... c5 {[%clk 0:03:00.9]} 11. d4 {[%clk 0:03:05]}
11... Nd7 {[%clk 0:03:02.1]} 12. Nbd2 {[%clk 0:03:03.9]} 12... exd4 {[%clk
0:03:03.5]} 13. cxd4 {[%clk 0:03:04.8]} 13... Nc6 {[%clk 0:03:05.4]} 14. d5
{[%clk 0:03:05.7]} 14... Nce5 {[%clk 0:03:06.7]} 15. a4 {[%clk 0:03:07.2]} 15...
Rb8 {[%clk 0:03:05.2]} 16. Nxe5 {[%clk 0:03:05.7]} 16... Nxe5 {[%clk 0:03:07.1]}
17. f4 {[%clk 0:03:06.4]} 17... Ng6 {[%clk 0:03:08.7]} 18. Nf3 {[%clk
0:03:04.9]} 18... Bh4 {[%clk 0:03:09.9]} 19. Rf1 {[%clk 0:03:06.2]} 19... Bg3
{[%clk 0:03:10.2]} 20. f5 {[%clk 0:03:06.9]} 20... Ne5 {[%clk 0:03:11.5]} 21.
Ng5 {[%clk 0:03:07.3]} 21... h6 {[%clk 0:03:12.5]} 22. f6 {[%clk 0:03:07.6]}
22... gxf6 {[%clk 0:03:13.8]} 23. Nh7 {[%clk 0:03:08.4]} 23... Kxh7 {[%clk
0:03:13.6]} 24. Qh5 {[%clk 0:03:08.1]} 24... f5 {[%clk 0:03:14.9]} 25. Qxh6+
{[%clk 0:02:57.1]} 25... Kg8 {[%clk 0:03:16]} 26. exf5 {[%clk 0:02:56.5]} 26...
Qh4 {[%clk 0:03:05.8]} 27. Ra3 {[%clk 0:02:54.6]} 27... Qxh6 {[%clk 0:01:54.2]}
28. Bxh6 {[%clk 0:02:53.1]} 28... Bh4 {[%clk 0:01:55.8]} 29. f6 {[%clk
0:02:36.8]} 29... Re8 {[%clk 0:01:16.4]} 30. Rf4 {[%clk 0:02:37.2]} 30... Be1
{[%clk 0:00:58]} 31. Re3 {[%clk 0:02:23.3]} 31... Bd7 {[%clk 0:00:56.6]} 32.
Rxe1 {[%clk 0:02:22.4]} 32... Nf3+ {[%clk 0:00:52]} 33. Rxf3 {[%clk 0:02:20.6]}
33... Rxe1+ {[%clk 0:00:53.1]} 34. Kf2 {[%clk 0:02:20.7]} 34... Rbe8 {[%clk
0:00:44.6]} 35. Rg3+ {[%clk 0:02:21.1]} 35... Kh8 {[%clk 0:00:45.7]} 36. Bg7+
{[%clk 0:02:21.4]} 36... Kg8 {[%clk 0:00:46.9]} 37. Bd3 {[%clk 0:02:15.1]} 37...
c4 {[%clk 0:00:47.3]} 38. Bh6+ {[%clk 0:01:48.4]} 38... Kh8 {[%clk 0:00:46.1]}
39. Bg7+ {[%clk 0:01:48.9]} 39... Kg8 {[%clk 0:00:47.4]} 40. Bh6+ {[%clk
0:00:56.8]} 40... Kh8 {[%clk 0:00:47.9]} 41. Bg7+ {[%clk 0:00:58.7]} 41... Kg8
{[%clk 0:00:49.4]} 42. Bh6+ {[%clk 0:00:58.5]} 42... Kh8 {[%clk 0:00:50.4]} 43.
Bg7+ {[%clk 0:00:59.6]} 43... Kg8 {[%clk 0:00:51.6]} 44. Bh6+ {[%clk 0:01:00.5]}
44... Kh8 {[%clk 0:00:52.8]} 45. Bg7+ {[%clk 0:01:00.4]} 45... Kg8 {[%clk
0:00:54]} 1/2-1/2

[Event "*** MasterClass Titled Tuesday Blitz"]
[Site "Chess.com"]
[Date "2017.11.07"]
[Round "5"]
[White "Swarnapuri"]
[Black "Khamrakulov_Djurabek"]
[Result "1-0"]
[WhiteElo "2516"]
[BlackElo "2618"]
[TimeControl "180+2"]
[EndTime "15:13:26 PST"]
[Termination "Swarnapuri won on time"]

1. d4 {[%clk 0:03:01.9]} 1... Nf6 {[%clk 0:02:59.3]} 2. Bf4 {[%clk 0:03:03.5]}
2... d6 {[%clk 0:02:55.7]} 3. e3 {[%clk 0:03:05]} 3... g6 {[%clk 0:02:56.8]} 4.
h3 {[%clk 0:03:05.5]} 4... Bg7 {[%clk 0:02:57.7]} 5. Nf3 {[%clk 0:03:07.2]} 5...
O-O {[%clk 0:02:58.5]} 6. Be2 {[%clk 0:03:08.7]} 6... c5 {[%clk 0:02:53.4]} 7.
c3 {[%clk 0:03:09.1]} 7... cxd4 {[%clk 0:02:52.8]} 8. cxd4 {[%clk 0:03:08.2]}
8... Nc6 {[%clk 0:02:52.9]} 9. O-O {[%clk 0:03:06.9]} 9... Re8 {[%clk 0:02:51]}
10. Nc3 {[%clk 0:03:06.3]} 10... Qb6 {[%clk 0:02:37.3]} 11. Qd2 {[%clk
0:02:43.3]} 11... e5 {[%clk 0:02:35]} 12. dxe5 {[%clk 0:02:45.2]} 12... dxe5
{[%clk 0:02:36]} 13. Bh2 {[%clk 0:02:44.8]} 13... Bf5 {[%clk 0:02:30.2]} 14. Bc4
{[%clk 0:02:42.9]} 14... Rad8 {[%clk 0:02:29.4]} 15. Qe2 {[%clk 0:02:44]} 15...
h6 {[%clk 0:01:57.8]} 16. Rfd1 {[%clk 0:02:30.3]} 16... Ne4 {[%clk 0:01:57.9]}
17. Nxe4 {[%clk 0:02:26.1]} 17... Bxe4 {[%clk 0:01:58.1]} 18. Bxf7+ {[%clk
0:02:25.2]} 18... Kxf7 {[%clk 0:01:56.4]} 19. Qc4+ {[%clk 0:02:26.2]} 19... Kf8
{[%clk 0:01:19.3]} 20. Qxe4 {[%clk 0:02:25.9]} 20... Rxd1+ {[%clk 0:01:19.9]}
21. Rxd1 {[%clk 0:02:25.7]} 21... Rd8 {[%clk 0:01:21.3]} 22. Rf1 {[%clk
0:02:16.4]} 22... Qxb2 {[%clk 0:01:21.3]} 23. Nh4 {[%clk 0:01:59.3]} 23... g5
{[%clk 0:00:54.7]} 24. Nf5 {[%clk 0:01:39]} 24... Qxa2 {[%clk 0:00:47.5]} 25.
Nxg7 {[%clk 0:01:32]} 25... Kxg7 {[%clk 0:00:48.1]} 26. Bxe5+ {[%clk 0:01:33.9]}
26... Nxe5 {[%clk 0:00:48.4]} 27. Qxe5+ {[%clk 0:01:35.8]} 27... Kg6 {[%clk
0:00:42.1]} 28. Qe4+ {[%clk 0:01:36.5]} 28... Kf6 {[%clk 0:00:39.6]} 29. Qxb7
{[%clk 0:01:23.7]} 29... Rd6 {[%clk 0:00:34.6]} 30. Qh7 {[%clk 0:01:19.8]} 30...
Re6 {[%clk 0:00:05.1]} 31. Qxh6+ {[%clk 0:01:18.6]} 31... Kf7 {[%clk 0:00:06.3]}
32. Qxg5 {[%clk 0:01:17.4]} 32... Rg6 {[%clk 0:00:05.9]} 33. Qf5+ {[%clk
0:01:17.1]} 33... Kg7 {[%clk 0:00:06.9]} 34. Rd1 {[%clk 0:01:16.7]} 34... Kh6
{[%clk 0:00:05.5]} 35. Qf4+ {[%clk 0:01:16.5]} 1-0

[Event "*** MasterClass Titled Tuesday Blitz"]
[Site "Chess.com"]
[Date "2017.11.07"]
[Round "5"]
[White "IamSchrodingersCat"]
[Black "GMKrikor"]
[Result "0-1"]
[WhiteElo "2432"]
[BlackElo "2609"]
[TimeControl "180+2"]
[EndTime "15:13:47 PST"]
[Termination "GMKrikor won by resignation"]

1. e4 {[%clk 0:03:01.9]} 1... c5 {[%clk 0:03:01.2]} 2. Nf3 {[%clk 0:03:02.7]}
2... e6 {[%clk 0:03:02.8]} 3. d4 {[%clk 0:03:04]} 3... cxd4 {[%clk 0:03:04.3]}
4. Nxd4 {[%clk 0:03:05.9]} 4... Nc6 {[%clk 0:03:05.8]} 5. Nc3 {[%clk 0:03:05.3]}
5... a6 {[%clk 0:03:03.2]} 6. Be3 {[%clk 0:03:04.7]} 6... Nf6 {[%clk 0:03:03.9]}
7. Qd2 {[%clk 0:02:52.7]} 7... Bb4 {[%clk 0:03:04.1]} 8. Bd3 {[%clk 0:02:53.1]}
8... d5 {[%clk 0:03:01.9]} 9. Nxc6 {[%clk 0:02:52.6]} 9... bxc6 {[%clk
0:03:01.9]} 10. a3 {[%clk 0:02:53]} 10... Ba5 {[%clk 0:02:57.6]} 11. b4 {[%clk
0:02:47.7]} 11... Bc7 {[%clk 0:02:54.5]} 12. exd5 {[%clk 0:02:37.5]} 12... cxd5
{[%clk 0:02:55.6]} 13. O-O {[%clk 0:02:28.6]} 13... O-O {[%clk 0:02:55.2]} 14.
Rfe1 {[%clk 0:02:22.6]} 14... Bb7 {[%clk 0:02:37.5]} 15. Na4 {[%clk 0:02:10.5]}
15... Qd6 {[%clk 0:02:03.5]} 16. f4 {[%clk 0:01:55.3]} 16... d4 {[%clk
0:01:56.7]} 17. Bf2 {[%clk 0:01:40.3]} 17... Ng4 {[%clk 0:01:39.7]} 18. Nc5
{[%clk 0:01:24.3]} 18... Bc6 {[%clk 0:01:32.2]} 19. Bg3 {[%clk 0:01:11.3]} 19...
Ne3 {[%clk 0:01:18.2]} 20. Be4 {[%clk 0:00:44.8]} 20... Bxe4 {[%clk 0:01:10.5]}
21. Nxe4 {[%clk 0:00:46.7]} 21... Qc6 {[%clk 0:01:08.2]} 22. Nc5 {[%clk
0:00:38.6]} 22... Rfd8 {[%clk 0:00:59.9]} 23. Rac1 {[%clk 0:00:24.3]} 23... a5
{[%clk 0:00:57.6]} 24. Nd3 {[%clk 0:00:23.3]} 24... axb4 {[%clk 0:00:57.7]} 25.
axb4 {[%clk 0:00:25.2]} 25... Ra2 {[%clk 0:00:56.3]} 26. Re2 {[%clk 0:00:23.4]}
26... h6 {[%clk 0:00:55.2]} 27. Bh4 {[%clk 0:00:19.5]} 27... Rda8 {[%clk
0:00:50.8]} 28. Nc5 {[%clk 0:00:13.8]} 28... Qd5 {[%clk 0:00:38.1]} 29. Bg3
{[%clk 0:00:12.7]} 29... Qc4 {[%clk 0:00:32.6]} 30. Nd3 {[%clk 0:00:11.9]} 30...
Ra1 {[%clk 0:00:30.3]} 31. Bf2 {[%clk 0:00:11.4]} 31... Nd5 {[%clk 0:00:26.5]}
32. Ne5 {[%clk 0:00:08.7]} 32... Rxc1+ {[%clk 0:00:25]} 33. Qxc1 {[%clk
0:00:10.6]} 33... Qxe2 {[%clk 0:00:25.7]} 0-1

[Event "*** MasterClass Titled Tuesday Blitz"]
[Site "Chess.com"]
[Date "2017.11.07"]
[Round "5"]
[White "northridgehawk"]
[Black "ChadBiryani"]
[Result "1-0"]
[WhiteElo "1956"]
[BlackElo "2167"]
[TimeControl "180+2"]
[EndTime "15:13:58 PST"]
[Termination "northridgehawk won by resignation"]

1. e4 {[%clk 0:02:58.4]} 1... d5 {[%clk 0:02:58.6]} 2. exd5 {[%clk 0:02:59.4]}
2... Qxd5 {[%clk 0:03:00.5]} 3. Nf3 {[%clk 0:03:00.8]} 3... Bg4 {[%clk
0:02:59.6]} 4. Be2 {[%clk 0:03:02.3]} 4... Nf6 {[%clk 0:02:56.5]} 5. h3 {[%clk
0:02:59.5]} 5... Bh5 {[%clk 0:02:56.9]} 6. d4 {[%clk 0:03:00.8]} 6... c6 {[%clk
0:02:57.3]} 7. O-O {[%clk 0:03:02]} 7... e6 {[%clk 0:02:58.2]} 8. c4 {[%clk
0:03:03.5]} 8... Qd8 {[%clk 0:02:58.2]} 9. Nc3 {[%clk 0:03:05]} 9... Bd6 {[%clk
0:02:59]} 10. Be3 {[%clk 0:03:05.4]} 10... O-O {[%clk 0:02:59.7]} 11. a3 {[%clk
0:03:06.7]} 11... Re8 {[%clk 0:03:00.4]} 12. h4 {[%clk 0:03:08.6]} 12... Qc7
{[%clk 0:02:45.8]} 13. b4 {[%clk 0:03:06.8]} 13... Nbd7 {[%clk 0:02:42.4]} 14.
Qb3 {[%clk 0:03:06.1]} 14... Ng4 {[%clk 0:02:40.5]} 15. Ne4 {[%clk 0:03:03.8]}
15... Bf4 {[%clk 0:02:31.2]} 16. Bxf4 {[%clk 0:02:46.5]} 16... Qxf4 {[%clk
0:02:30.3]} 17. Ng3 {[%clk 0:02:47.7]} 17... Ngf6 {[%clk 0:02:17.4]} 18. Rfe1
{[%clk 0:02:41.8]} 18... Bg4 {[%clk 0:02:13.1]} 19. Rad1 {[%clk 0:02:37.4]}
19... Nb6 {[%clk 0:02:12.2]} 20. a4 {[%clk 0:02:37.6]} 20... Rad8 {[%clk
0:02:11.1]} 21. a5 {[%clk 0:02:38.8]} 21... Nc8 {[%clk 0:02:08.9]} 22. Qe3
{[%clk 0:02:19]} 22... Qd6 {[%clk 0:02:02.6]} 23. Qc3 {[%clk 0:02:14.3]} 23...
Qc7 {[%clk 0:02:01.7]} 24. Ne5 {[%clk 0:02:14]} 24... Bxe2 {[%clk 0:02:02.1]}
25. Rxe2 {[%clk 0:02:15.9]} 25... Nd7 {[%clk 0:02:01.6]} 26. Red2 {[%clk
0:02:10.5]} 26... Ne7 {[%clk 0:01:59.1]} 27. h5 {[%clk 0:01:54.8]} 27... Nf6
{[%clk 0:01:44.3]} 28. h6 {[%clk 0:01:48.4]} 28... g6 {[%clk 0:01:17.2]} 29. Qf3
{[%clk 0:01:46.9]} 29... Nf5 {[%clk 0:01:17.7]} 30. Qf4 {[%clk 0:01:36.5]} 30...
Qe7 {[%clk 0:01:09.9]} 31. Rb1 {[%clk 0:01:13.9]} 31... Qf8 {[%clk 0:01:08.4]}
32. Nxf5 {[%clk 0:01:07]} 32... exf5 {[%clk 0:01:09.5]} 33. b5 {[%clk
0:01:04.4]} 33... c5 {[%clk 0:00:56.8]} 34. a6 {[%clk 0:00:59.2]} 34... b6
{[%clk 0:00:55.8]} 35. Nc6 {[%clk 0:00:58.7]} 35... Re4 {[%clk 0:00:36.3]} 36.
Qc7 {[%clk 0:00:56.6]} 36... Rd7 {[%clk 0:00:37]} 37. Qb8 {[%clk 0:00:53.2]}
37... Qxb8 {[%clk 0:00:36.5]} 38. Nxb8 {[%clk 0:00:53.7]} 38... Rexd4 {[%clk
0:00:33]} 39. Nxd7 {[%clk 0:00:50.8]} 39... Rxd2 {[%clk 0:00:19]} 40. Nxf6+
{[%clk 0:00:50.5]} 40... Kf8 {[%clk 0:00:19.7]} 41. Re1 {[%clk 0:00:52]} 41...
Rd8 {[%clk 0:00:19.8]} 42. Nxh7+ {[%clk 0:00:50.6]} 42... Kg8 {[%clk 0:00:21]}
43. Nf6+ {[%clk 0:00:52.5]} 43... Kh8 {[%clk 0:00:22.3]} 44. Re7 {[%clk
0:00:51.7]} 1-0

[Event "*** MasterClass Titled Tuesday Blitz"]
[Site "Chess.com"]
[Date "2017.11.07"]
[Round "5"]
[White "Salem-AR"]
[Black "Vrolijk"]
[Result "1-0"]
[WhiteElo "2805"]
[BlackElo "2500"]
[TimeControl "180+2"]
[EndTime "15:14:00 PST"]
[Termination "Salem-AR won by checkmate"]

1. d4 {[%clk 0:03:01.9]} 1... Nf6 {[%clk 0:02:49.1]} 2. c4 {[%clk 0:03:03.2]}
2... e6 {[%clk 0:02:50.3]} 3. Nf3 {[%clk 0:03:04.3]} 3... b6 {[%clk 0:02:50.6]}
4. g3 {[%clk 0:03:04.9]} 4... Bb4+ {[%clk 0:02:48.3]} 5. Nbd2 {[%clk 0:03:05.1]}
5... Bb7 {[%clk 0:02:48.5]} 6. Bg2 {[%clk 0:03:06.3]} 6... c5 {[%clk 0:02:46.8]}
7. dxc5 {[%clk 0:03:02.4]} 7... Bxc5 {[%clk 0:02:45.5]} 8. O-O {[%clk
0:03:03.7]} 8... O-O {[%clk 0:02:47]} 9. b3 {[%clk 0:03:04.9]} 9... d5 {[%clk
0:02:43]} 10. Bb2 {[%clk 0:03:01.6]} 10... Nbd7 {[%clk 0:02:42.1]} 11. Rc1
{[%clk 0:02:55.7]} 11... Qe7 {[%clk 0:02:28.5]} 12. Qc2 {[%clk 0:02:56.2]} 12...
Rac8 {[%clk 0:02:25.6]} 13. Qb1 {[%clk 0:02:54.9]} 13... e5 {[%clk 0:02:12.7]}
14. e3 {[%clk 0:02:32.2]} 14... Rfe8 {[%clk 0:02:01.6]} 15. Rfd1 {[%clk
0:02:30.9]} 15... Bd6 {[%clk 0:01:26.8]} 16. Nh4 {[%clk 0:02:26.2]} 16... g6
{[%clk 0:01:25.2]} 17. cxd5 {[%clk 0:02:27.5]} 17... Rxc1 {[%clk 0:01:22.9]} 18.
Qxc1 {[%clk 0:02:29.2]} 18... Rc8 {[%clk 0:01:15]} 19. Qa1 {[%clk 0:02:29.7]}
19... Nc5 {[%clk 0:00:36.1]} 20. Nc4 {[%clk 0:02:25.4]} 20... Nfd7 {[%clk
0:00:35.9]} 21. Nf3 {[%clk 0:02:22.2]} 21... f6 {[%clk 0:00:33.9]} 22. Nxd6
{[%clk 0:02:03.3]} 22... Qxd6 {[%clk 0:00:35.8]} 23. Nd2 {[%clk 0:02:05.2]}
23... b5 {[%clk 0:00:33.8]} 24. b4 {[%clk 0:02:05.7]} 24... Na4 {[%clk 0:00:32]}
25. Bh3 {[%clk 0:01:21.8]} 25... f5 {[%clk 0:00:32.3]} 26. Nf3 {[%clk
0:01:07.1]} 26... e4 {[%clk 0:00:26.8]} 27. Bh8 {[%clk 0:01:01.1]} 27... Qf8
{[%clk 0:00:24.2]} 28. Ng5 {[%clk 0:00:59.6]} 28... Ndb6 {[%clk 0:00:17.3]} 29.
Nxe4 {[%clk 0:00:57.1]} 29... Nxd5 {[%clk 0:00:14.2]} 30. Be5 {[%clk 0:00:43.9]}
30... Qe7 {[%clk 0:00:14.2]} 31. Rxd5 {[%clk 0:00:42.1]} 31... Bxd5 {[%clk
0:00:16.1]} 32. Nf6+ {[%clk 0:00:43.3]} 32... Kf7 {[%clk 0:00:17.3]} 33. Nxd5
{[%clk 0:00:45]} 33... Qe6 {[%clk 0:00:19.2]} 34. Bg2 {[%clk 0:00:40.7]} 34...
Nb6 {[%clk 0:00:19]} 35. Nxb6 {[%clk 0:00:35.5]} 35... axb6 {[%clk 0:00:20.9]}
36. h4 {[%clk 0:00:36.5]} 36... Qc4 {[%clk 0:00:20.8]} 37. Kh2 {[%clk
0:00:35.7]} 37... Qc1 {[%clk 0:00:20]} 38. Qd4 {[%clk 0:00:35.9]} 38... Re8
{[%clk 0:00:19.6]} 39. Qd7+ {[%clk 0:00:36.5]} 39... Kf8 {[%clk 0:00:20.8]} 40.
Qg7# {[%clk 0:00:36.9]} 1-0